fUSD/lending_fUSD_20240625
["ID","MTS","AMOUNT","RATE_DAILY","PERIOD"]
[330359829,1719328232099,-877.41,0.00014496,3]
[330359830,1719328232109,-150.0,0.00014575,2]
[330359831,1719328232118,-300.0,0.00014898,2]
[330359832,1719328232127,-1985.87369521,0.00014899,2]
[330359833,1719328232140,-593.55351269,0.00014899,2]
[330359834,1719328232151,-2816.99074986,0.00014899,2]
[330359835,1719328232164,-4057.32454602,0.00014899,2]
[330359836,1719328232176,-3454.59146314,0.00014899,2]
[330359837,1719328232186,-537.28157027,0.000149,2]
[330359838,1719328232195,-171.25042834,0.000149,2]
[330359839,1719328232205,-939.90190618,0.000149,2]
[330359840,1719328232215,-185.14819565,0.000149,2]
[330359841,1719328232224,-1588.46681949,0.000149,2]
[330359842,1719328232234,-4884.1482104,0.000149,2]
[330359843,1719328232246,-300.0,0.000149,2]
[330359844,1719328232258,-2404.29133312,0.000149,2]
[330359845,1719328232268,-503.5777,0.000149,2]
[330359846,1719328232277,-324.23258188,0.000149,2]
[330359847,1719328232287,-730.11688312,0.000149,2]
[330359848,1719328232297,-179.8,0.00014904,2]
[330359849,1719328232306,-1704.84193428,0.00014984,2]
[330359850,1719328232316,-311.6,0.0001499,3]
[330359851,1719328232325,-3825.93300241,0.00015,2]
[330359852,1719328232336,-8084.26852636,0.00015,2]
[330359853,1719328232350,-266.95294903,0.00015,2]
[330359854,1719328232363,-54559.95864952,0.00015,2]
[330359855,1719328232374,-393448.80246089,0.00015,2]
[330359856,1719328232386,-308.807424,0.00015,2]
[330359857,1719328232397,-269.0000005,0.00015,2]
[330359858,1719328232408,-833.36001832,0.00015,2]
[330359859,1719328232420,-537.12016184,0.00015,2]
[330359860,1719328232431,-3188.38584379,0.00015,2]
[330359861,1719328232445,-3718.59039,0.00015,2]
[330359862,1719328232456,-7163.23471616,0.00015,2]
[330359863,1719328232469,-7439.79,0.00015,2]
[330359880,1719328237990,-320.7422724,0.00015,2]
[330359881,1719328238007,-972.99635304,0.00015,2]
[330359907,1719328239900,-22820.80713084,0.00015,2]
[330359908,1719328239912,-9014.54653559,0.00015,2]
[330359911,1719328240282,-604.87450265,0.00015,2]
[330359912,1719328240295,-664.35000011,0.00015,2]
[330359913,1719328240306,-2389.5,0.00015,2]
[330359914,1719328240318,-692.43249975,0.00015,2]
[330359915,1719328240330,-1597.67299566,0.00015,2]
[330359916,1719328240342,-2020.21344685,0.00015,2]
[330359917,1719328240355,-141249.18971613,0.00015,2]
[330359918,1719328240366,-1331.27692443,0.00015,2]
[330359919,1719328240377,-5220.72139706,0.00015,2]
[330359920,1719328240389,-930.0,0.00015,2]
[330359921,1719328240400,-1130.54686907,0.00015,2]
[330359922,1719328240412,-500.0,0.00015,2]
[330359945,1719328243053,-15611.128,0.00015,2]
[330359946,1719328243064,-256.93652067,0.00015,2]
[330359947,1719328243683,-17507.714408,0.00015,2]
[330359975,1719328246141,-547.84176427,0.00015,2]
[330359976,1719328246153,-1853.9365,0.00015,2]
[330359977,1719328246169,-719.95798759,0.00015,2]
[330359978,1719328246181,-285.044766,0.00015,2]
[330359979,1719328246193,-24744.4,0.00015,2]
[330359981,1719328246429,-897.3781485,0.00015,2]
[330359982,1719328246609,-50624.51191007,0.00015,2]
[330359983,1719328246620,-40732.317161,0.00015,2]
[330359984,1719328246632,-681.37387188,0.00015,2]
[330359985,1719328336292,155.88,0.00012183,2]
[330359986,1719328336633,155.88,0.00012228,2]
[330359987,1719328336956,155.88,0.00012274,2]
[330359988,1719328337115,155.88,0.00012319,2]
[330359989,1719328337228,155.88,0.00012364,2]
[330359990,1719328337362,155.88,0.0001241,2]
[330359991,1719328337615,155.88,0.00012455,2]
[330359992,1719328337835,155.88,0.000125,2]
[330359993,1719328338049,155.88,0.00012546,2]
[330359994,1719328338292,155.88,0.00012591,2]
[330359995,1719328338527,155.88,0.00012637,2]
[330359996,1719328338798,155.88,0.00012682,2]
[330359997,1719328339077,155.88,0.00012727,2]
[330359998,1719328339664,155.88,0.00012773,2]
[330359999,1719328339748,155.88,0.00012818,2]
[330360000,1719328389672,366.11090361,0.00013999,2]
[330360001,1719328464573,654.65,0.00018849,30]
[330360002,1719328479411,14047.67493342,0.00013999,2]
[330360003,1719328486690,312.77647582,0.00016968,30]
[330360004,1719328537260,19606.28873825,0.00013999,2]
[330360005,1719328543816,313.02582226,0.00020567,60]
[330360008,1719328719341,941.4675623,0.00025,60]
[330360009,1719328722643,831.0590105,0.00013999,2]
[330360026,1719328915672,430.47767915,0.00013999,2]
[330360034,1719328968367,177.65,0.00025241,120]
[330360038,1719329015412,669.62,0.00018849,30]
[330360047,1719329127604,600.28681569,0.00026,120]
[330360050,1719329206277,1000.0,0.00012092,2]
[330360051,1719329206446,1000.0,0.00013604,2]
[330360056,1719329302080,312.74943097,0.00026,120]
[330360059,1719329432172,-491.6135,0.00014239,2]
[330360061,1719329432183,-390.58,0.000147,2]
[330360063,1719329432194,-134.77683824,0.00014898,2]
[330360081,1719329438247,-307.75409449,0.00014898,2]
[330360082,1719329438261,-6994.59276979,0.00014898,2]
[330360083,1719329438271,-300.0,0.00014899,2]
[330360084,1719329438283,-439.5257,0.000149,2]
[330360085,1719329438295,-1676.3004104,0.000149,2]
[330360086,1719329438306,-172.28575094,0.000149,2]
[330360087,1719329438317,-822.41416796,0.000149,2]
[330360088,1719329438327,-1809.63472182,0.000149,2]
[330360089,1719329438337,-171.25042834,0.000149,2]
[330360090,1719329438347,-47967.45982231,0.000149,2]
[330360091,1719329438361,-2032.54017769,0.000149,2]
[330360092,1719329438375,-219.54,0.00014904,2]
[330360093,1719329438386,-28488.41982231,0.00015,2]
[330360094,1719329438399,-5455.43200001,0.00015,2]
[330360095,1719329438774,-1007.01572155,0.00015,2]
[330360101,1719329440698,-6778.44738998,0.00015,2]
[330360102,1719329440711,-339.37557259,0.00015,2]
[330360103,1719329440723,-1465.04982118,0.00015,2]
[330360104,1719329440737,-1842.09104493,0.00015,2]
[330360105,1719329441054,-1000.70091719,0.00015,2]
[330360108,1719329441067,-260.0,0.00015,2]
[330360110,1719329441079,-1780.95012414,0.00015,2]
[330360163,1719329444716,-15475.70242893,0.00015,2]
[330360165,1719329444728,-64250.00000014,0.00015,2]
[330360168,1719329444739,-24649.67573574,0.00015,2]
[330360170,1719329444751,-60091.35145412,0.00015,2]
[330360192,1719329446540,-1741.6135,0.00015,2]
[330360196,1719329446552,-1162.76475414,0.00015,2]
[330360198,1719329446564,-1041.66333381,0.00015,2]
[330360200,1719329446575,-11651.21138074,0.00015,2]
[330360202,1719329446587,-1709.59311675,0.00015,2]
[330360211,1719329446797,-23877.5883493,0.00015,2]
[330360212,1719329446808,-2547.92756546,0.00015,2]
[330360213,1719329446970,-538.4355534,0.00015,2]
[330360217,1719329581511,613.81,0.00018849,30]
[330360218,1719329601810,1000.0,0.00025369,120]
[330360219,1719329614298,200.0,0.00025492,120]
[330360220,1719329640782,589.58,0.0002302,120]
[330360221,1719329670802,548.518,0.0001387,2]
[330360223,1719329786883,9969.2288201,0.00013999,2]
[330360224,1719329840606,512.01083041,0.00025,60]
[330360226,1719330134551,14722.93608156,0.00011,2]
[330360228,1719330226604,263.28070068,0.00011,2]
[330360229,1719330241629,155.0,0.00011,2]
[330360230,1719330255595,155.0,0.00011,2]
[330360231,1719330266154,200.14319563,0.00011,2]
[330360232,1719330333083,2364.28936065,0.00011,2]
[330360233,1719330350291,562.65,0.00018849,30]
[330360234,1719330428885,-371.05,0.00013221,2]
[330360235,1719330428922,-292.11268091,0.00013331,2]
[330360236,1719330428958,-150.0,0.00013332,2]
[330360237,1719330428994,-1313.49408925,0.00013333,2]
[330360238,1719330429029,-250.0,0.0001425,2]
[330360239,1719330429070,-300.0,0.00014302,2]
[330360240,1719330429109,-975.74,0.00014303,2]
[330360241,1719330429148,-20000.0,0.00014303,2]
[330360242,1719330429194,-4007.8,0.00014359,2]
[330360243,1719330429233,-150.0,0.00014521,2]
[330360244,1719330429274,-291.1,0.00014544,3]
[330360245,1719330429314,-247100.0,0.00014554,2]
[330360246,1719330429351,-495.16705148,0.00014567,2]
[330360247,1719330429390,-202.29211516,0.00014582,2]
[330360248,1719330429435,-499.99,0.00014582,2]
[330360249,1719330429471,-7437.12370252,0.00014633,2]
[330360250,1719330429510,-198.7,0.00014734,2]
[330360251,1719330429551,-250.0,0.00014741,2]
[330360252,1719330429590,-20869.2057,0.0001475,2]
[330360253,1719330429627,-570.14,0.0001475,2]
[330360254,1719330429676,-156.0208,0.000149,2]
[330360255,1719330429717,-4359.1182,0.000149,2]
[330360256,1719330429755,-1916.0797496,0.000149,2]
[330360257,1719330429796,-161.1766454,0.0001491,2]
[330360258,1719330429833,-209.48641976,0.00014999,2]
[330360259,1719330429884,-5809.78247913,0.00014999,2]
[330360260,1719330429945,-625.71,0.00014999,2]
[330360261,1719330430351,-207946.59326679,0.00015,2]
[330360280,1719330632681,-434.66,0.0001392,2]
[330360281,1719330632692,-1628.67124962,0.000149,2]
[330360282,1719330632701,-10931.66875038,0.000149,2]
[330360283,1719330632713,-521.8223775,0.000149,2]
[330360284,1719330632770,-2189.43119808,0.000149,2]
[330360285,1719330632783,-800.07111468,0.000149,2]
[330360286,1719330632796,-552.3830567,0.000149,2]
[330360287,1719330632805,-11639.13192358,0.000149,2]
[330360288,1719330632834,-297.04785907,0.000149,2]
[330360289,1719330632915,-2187.93999304,0.000149,2]
[330360290,1719330632927,-9185.09291747,0.000149,2]
[330360291,1719330632941,-1849.85936052,0.000149,2]
[330360294,1719330637982,-1313.49408925,0.0001106,2]
[330360295,1719330637993,-451.73086549,0.00014649,2]
[330360296,1719330638003,-12445.18875941,0.000149,2]
[330360297,1719330638015,-3440.65252744,0.000149,2]
[330360298,1719330638028,-384.59479513,0.000149,2]
[330360299,1719330638045,-347.93,0.000149,2]
[330360300,1719330638106,-8222.56186434,0.000149,2]
[330360301,1719330638116,-209.48641975,0.00014999,2]
[330360302,1719330638128,-2904.89123956,0.00014999,2]
[330360303,1719330638139,-250.35916501,0.00014999,2]
[330360304,1719330638149,-19792.56893537,0.00015,2]
[330360305,1719330638175,-781.88578096,0.00015,2]
[330360306,1719330638187,-769.22313,0.00015,2]
[330360307,1719330638200,-298.0119726,0.00015,2]
[330360308,1719330638212,-1003.4732197,0.00015,2]
[330360309,1719330638354,-570.18901416,0.00015,2]
[330360310,1719330638367,-267.4029094,0.00015,2]
[330360311,1719330638379,-780.33589964,0.00015,2]
[330360312,1719330638392,-368.4034386,0.00015,2]
[330360331,1719330640023,-716.8094612,0.00015,2]
[330360334,1719330640146,-4339.53748699,0.00015,2]
[330360366,1719330640778,-9.426e-05,0.00014899,2]
[330360368,1719330640790,-517.3092,0.00014899,2]
[330360370,1719330640806,-411.10322206,0.00014899,2]
[330360372,1719330640818,-323.14981583,0.00014899,2]
[330360374,1719330640829,-2315.03342833,0.00015,2]
[330360423,1719330643087,-1243.9391314,0.00014999,2]
[330360429,1719330643142,-208.50648838,0.00014999,2]
[330360432,1719330643152,-173.61609744,0.00015,2]
[330360454,1719330643480,-384.34999965,0.00015,2]
[330360455,1719330643499,-8450.7127794,0.00015,2]
[330360456,1719330643519,-740.9646359,0.00015,2]
[330360457,1719330643532,-5804.77917735,0.00015,2]
[330360458,1719330643555,-453.8567141,0.00015,2]
[330360460,1719330643565,-2229.16978062,0.00015,2]
[330360464,1719330643581,-58203.6507486,0.00015,2]
[330360466,1719330643592,-1308.30798617,0.00015,2]
[330360468,1719330643603,-140463.63873579,0.00015,2]
[330360482,1719330646061,-201.51938811,0.00014999,2]
[330360483,1719330646071,-726.22280989,0.00014999,2]
[330360484,1719330646081,-2170.707802,0.00015,2]
[330360485,1719330646092,-11582.50964721,0.00015,2]
[330360486,1719330646104,-1692.20876631,0.00015,2]
[330360487,1719330646130,-15792.50828716,0.00015,2]
[330360488,1719330646142,-3399.39625553,0.00015,2]
[330360489,1719330646154,-2207.1800953,0.00015,2]
[330360490,1719330646165,-1470.7035555,0.00015,2]
[330360491,1719330646176,-551.40043963,0.00015,2]
[330360492,1719330646187,-2140.314,0.00015,2]
[330360493,1719330646199,-682.94,0.00015,2]
[330360494,1719330646220,-438938.86622353,0.00015,2]
[330360495,1719330646231,-1042.51679166,0.00015,2]
[330360496,1719330646246,-5795.19038756,0.00015,2]
[330360497,1719330646258,-724.52419805,0.00015,2]
[330360498,1719330646286,-281.0,0.00015,2]
[330360499,1719330646297,-3332.79719692,0.00015,2]
[330360500,1719330646309,-5234.8,0.00015,2]
[330360501,1719330646392,-3219.0,0.00015,2]
[330360502,1719330646403,-2012.74517923,0.00015,2]
[330360505,1719330726315,684.3304205,0.00011,2]
[330360506,1719330790405,450.0,0.00011,2]
[330360507,1719330814406,205.69177,0.00025708,120]
[330360508,1719330819137,-553.0,0.00011054,2]
[330360509,1719330828179,-10000.0,0.00013333,2]
[330360510,1719330830322,-9606.28873825,0.00013333,2]
[330360514,1719330880039,393.71126175,0.00013399,2]
[330360515,1719330880062,2102.87249145,0.00013399,2]
[330360516,1719330904882,515.76,0.00018849,30]
[330360517,1719331114523,320.0,0.00026,120]
[330360518,1719331125327,320.0,0.00026,120]
[330360519,1719331138282,320.0,0.00026,120]
[330360520,1719331152388,320.0,0.00026,120]
[330360521,1719331159676,320.0,0.00026,120]
[330360522,1719331169276,320.0,0.00026,120]
[330360524,1719331179314,320.0,0.00026,120]
[330360525,1719331190653,320.0,0.00026,120]
[330360529,1719331233408,167.63655556,0.00012442,2]
[330360530,1719331233432,33.72344444,0.00012442,2]
[330360531,1719331278320,165.39922223,0.00012442,2]
[330360532,1719331278343,97.93345253,0.00012442,2]
[330360533,1719331285143,155.0,0.00012442,2]
[330360534,1719331285890,10.39922223,0.00012442,2]
[330360535,1719331285912,165.39922223,0.00012442,2]
[330360536,1719331285938,165.39922223,0.00012442,2]
[330360537,1719331285962,93.19056229,0.00012442,2]
[330360538,1719331286804,72.20865994,0.00012442,2]
[330360539,1719331286825,82.79134006,0.00012442,2]
[330360540,1719331287699,82.60788217,0.00012442,2]
[330360541,1719331287721,165.39922223,0.00012442,2]
[330360542,1719331287743,165.39922223,0.00012442,2]
[330360543,1719331287770,165.39922223,0.00012442,2]
[330360544,1719331287792,165.39922223,0.00012442,2]
[330360545,1719331287814,165.39922223,0.00012442,2]
[330360546,1719331287835,165.39922223,0.00012442,2]
[330360547,1719331287857,165.39922223,0.00012442,2]
[330360548,1719331287881,165.39922223,0.00012442,2]
[330360549,1719331287902,165.39922223,0.00012442,2]
[330360550,1719331287928,165.39922223,0.00012442,2]
[330360551,1719331287949,165.39922223,0.00012442,2]
[330360552,1719331287976,165.39922223,0.00012442,2]
[330360553,1719331287998,165.39922223,0.00012442,2]
[330360554,1719331288022,165.39922223,0.00012442,2]
[330360555,1719331288046,165.39922223,0.00012442,2]
[330360556,1719331288070,165.39922223,0.00012442,2]
[330360557,1719331288091,165.39922223,0.00012442,2]
[330360558,1719331288113,165.39922223,0.00012442,2]
[330360559,1719331288135,165.39922223,0.00012442,2]
[330360560,1719331288157,165.39922223,0.00012442,2]
[330360561,1719331288179,165.39922223,0.00012442,2]
[330360562,1719331288202,165.39922223,0.00012442,2]
[330360563,1719331288224,165.39922223,0.00012442,2]
[330360564,1719331288244,165.39922223,0.00012442,2]
[330360565,1719331288268,165.39922223,0.00012442,2]
[330360566,1719331288291,165.39922153,0.00012442,2]
[330360567,1719331288315,165.39922223,0.00012442,2]
[330360568,1719331288335,165.39922223,0.00012442,2]
[330360569,1719331288356,165.39922223,0.00012442,2]
[330360570,1719331288377,165.39922223,0.00012442,2]
[330360571,1719331288398,165.39922223,0.00012442,2]
[330360572,1719331288420,165.39922223,0.00012442,2]
[330360573,1719331288441,165.39922223,0.00012442,2]
[330360574,1719331288464,165.39922223,0.00012442,2]
[330360575,1719331288485,165.39922223,0.00012442,2]
[330360576,1719331288505,165.39922223,0.00012442,2]
[330360577,1719331288530,165.39922223,0.00012442,2]
[330360578,1719331288549,165.39922223,0.00012442,2]
[330360579,1719331288570,165.39922223,0.00012442,2]
[330360580,1719331288592,165.39922223,0.00012442,2]
[330360581,1719331288614,165.39922223,0.00012442,2]
[330360582,1719331288637,165.39922223,0.00012442,2]
[330360583,1719331288659,165.39922223,0.00012442,2]
[330360584,1719331288682,7897.12750855,0.00012442,2]
[330360585,1719331288704,5214.27920999,0.00012442,2]
[330360586,1719331289198,1365.6260186,0.00012442,2]
[330360587,1719331289848,155.25433982,0.00012442,2]
[330360591,1719331374151,150.0,0.00012442,2]
[330360592,1719331374176,5.0,0.00012442,2]
[330360593,1719331380023,150.0,0.00012442,2]
[330360594,1719331380046,113.33267476,0.00012442,2]
[330360595,1719331385718,150.0,0.00012442,2]
[330360596,1719331385742,150.0,0.00012442,2]
[330360597,1719331385764,150.0,0.00012442,2]
[330360598,1719331385786,150.0,0.00012442,2]
[330360599,1719331385809,150.0,0.00012442,2]
[330360600,1719331385831,150.0,0.00012442,2]
[330360601,1719331385855,150.0,0.00012442,2]
[330360602,1719331385878,150.0,0.00012442,2]
[330360603,1719331385900,150.0,0.00012442,2]
[330360604,1719331385922,150.0,0.00012442,2]
[330360605,1719331385943,150.0,0.00012442,2]
[330360606,1719331385965,150.0,0.00012442,2]
[330360607,1719331385989,150.0,0.00012442,2]
[330360608,1719331386016,150.0,0.00012442,2]
[330360609,1719331386038,150.0,0.00012442,2]
[330360610,1719331386061,150.0,0.00012442,2]
[330360611,1719331386084,150.0,0.00012442,2]
[330360612,1719331386107,150.0,0.00012442,2]
[330360613,1719331386129,150.0,0.00012442,2]
[330360614,1719331386152,128.59393191,0.00012442,2]
[330360615,1719331392010,150.0,0.00012442,2]
[330360616,1719331392034,16.20928735,0.00012442,2]
[330360619,1719331412119,150.0,0.0001244,2]
[330360620,1719331412142,21.92,0.0001244,2]
[330360621,1719331466155,150.0,0.0001244,2]
[330360622,1719331466178,46.6281065,0.0001244,2]
[330360623,1719331471774,198.97989761,0.00026,120]
[330360625,1719331488032,150.0,0.0001244,2]
[330360626,1719331488066,113.33267476,0.0001244,2]
[330360631,1719331537098,472.78,0.00018849,30]
[330360634,1719331608485,151.0,0.00026,120]
[330360639,1719331767137,150.0,0.00012334,2]
[330360640,1719331767159,150.0,0.00012334,2]
[330360641,1719331767181,150.0,0.00012334,2]
[330360642,1719331767205,121.68,0.00012334,2]
[330360664,1719331832984,-253.12656111,0.00013657,2]
[330360665,1719331832994,-937.31343889,0.00014198,3]
[330360666,1719331833015,-86.73656111,0.00014198,3]
[330360667,1719331833026,-250.0,0.00014252,2]
[330360668,1719331833035,-686.95,0.00014354,2]
[330360669,1719331833044,-1627.32809117,0.00014408,2]
[330360670,1719331833057,-690.20000005,0.00014408,2]
[330360671,1719331833074,-1800.0,0.00014408,2]
[330360672,1719331833085,-45882.47190878,0.00014408,2]
[330360673,1719331833095,-150.0,0.00014408,2]
[330360674,1719331833104,-27127.92148165,0.00014409,2]
[330360675,1719331833115,-18711.44816338,0.00014409,2]
[330360676,1719331833146,-331.9629089,0.00014409,2]
[330360677,1719331833162,-783.79793316,0.00014409,2]
[330360678,1719331833173,-318.86689986,0.00014409,2]
[330360679,1719331833201,-641.43342479,0.00014409,2]
[330360680,1719331833214,-826.29867666,0.00014409,2]
[330360681,1719331833226,-505.38615579,0.00014409,2]
[330360682,1719331833245,-266.34568794,0.00014409,2]
[330360683,1719331837510,150.0,0.00012334,2]
[330360684,1719331837533,111.10960066,0.00012334,2]
[330360698,1719331838129,-92162.39079932,0.00014409,2]
[330360700,1719331838148,-3212.22143182,0.00014409,2]
[330360713,1719331839356,-1655.62838296,0.00014409,2]
[330360714,1719331839406,-80596.29805377,0.00014409,2]
[330360715,1719331839416,-155.24207177,0.00014454,2]
[330360716,1719331839426,-6668.4304,0.00014455,2]
[330360717,1719331839436,-3329.06132594,0.00014455,2]
[330360718,1719331839447,-325.16500787,0.00014455,2]
[330360719,1719331840275,-1861.97277575,0.00014455,2]
[330360720,1719331840287,-644.52416398,0.00014455,2]
[330360721,1719331840298,-375.745,0.00014455,2]
[330360722,1719331840309,-2201.53452646,0.00014455,2]
[330360723,1719331840320,-4585.76271918,0.00014455,2]
[330360724,1719331840331,-301.21,0.00014455,2]
[330360725,1719331840351,-2101.10730544,0.00014455,2]
[330360726,1719331840676,-385.66261705,0.00014455,2]
[330360727,1719331840736,-6122.09620599,0.00014455,2]
[330360728,1719331840746,-1465.80412464,0.00014472,2]
[330360729,1719331840756,-155.0,0.00014552,2]
[330360730,1719331840767,-499.99,0.00014553,2]
[330360731,1719331840778,-676.85,0.00014572,2]
[330360732,1719331840788,-209.99775219,0.00014597,2]
[330360734,1719331840799,-571.68,0.00014598,2]
[330360735,1719331840809,-520.06850352,0.00014897,2]
[330360738,1719331840819,-268.98,0.0001499,3]
[330360739,1719331840830,-363.11140495,0.00014999,2]
[330360740,1719331840839,-10254.25773666,0.00014999,2]
[330360741,1719331840849,-17650.31267806,0.00015,2]
[330360793,1719331843980,-367.69336575,0.00015,2]
[330360794,1719331844005,-1070.68609688,0.00015,2]
[330360795,1719331844017,-346.11167018,0.00015,2]
[330360796,1719331844029,-725.77704884,0.00015,2]
[330360797,1719331844041,-32836.52503662,0.00015,2]
[330360798,1719331844060,-313.19811048,0.00015,2]
[330360799,1719331844164,-293.33957425,0.00015,2]
[330360800,1719331844178,-394.32513033,0.00015,2]
[330360801,1719331844208,-283796.3492514,0.00015,2]
[330360818,1719331846265,-819.3428148,0.00015,2]
[330360819,1719331846624,-6248.55757461,0.00015,2]
[330360820,1719331846635,-32446.53921104,0.00015,2]
[330360821,1719331846658,-18746.60657653,0.00015,2]
[330360822,1719331846679,-24774.9825758,0.00015,2]
[330360823,1719331846694,-695.3,0.00015,2]
[330360824,1719331889401,932.0359392,0.00026,120]
[330360829,1719332081680,433.38,0.00018849,30]
[330360832,1719332098378,-520.06850352,0.00013999,2]
[330360845,1719332188584,-1135.55987944,0.00013999,2]
[330360850,1719332377560,555.35,0.00012657,2]
[330360852,1719332416369,307.975,0.00013332,2]
[330360854,1719332429581,263.23883182,0.00012657,2]
[330360855,1719332433748,2138.27659977,0.00012657,2]
[330360856,1719332433772,10000.0,0.00012657,2]
[330360857,1719332433794,8167.90455613,0.00012657,2]
[330360863,1719332532748,1832.09544387,0.00012657,2]
[330360864,1719332532770,9447.0,0.00012657,2]
[330360865,1719332532792,9027.08571203,0.00012657,2]
[330360868,1719332615758,972.91428797,0.00012657,2]
[330360869,1719332615780,10000.0,0.00012657,2]
[330360870,1719332615800,8184.84230614,0.00012657,2]
[330360873,1719332717988,397.26,0.00018849,30]
[330360876,1719332829998,500.0,0.00019178,28]
[330360877,1719332830241,500.0,0.00019452,28]
[330360878,1719332831913,518.83477517,0.00019726,28]
[330360883,1719333031570,-346.03923627,0.00013868,2]
[330360884,1719333031583,-271.33001343,0.00013868,2]
[330360885,1719333031592,-464.36,0.00013897,2]
[330360886,1719333031603,-250.0,0.00013968,2]
[330360887,1719333031612,-173.98,0.0001397,2]
[330360888,1719333031622,-525.19443161,0.00013996,2]
[330360889,1719333031633,-1501.43496136,0.00013996,2]
[330360890,1719333031646,-1280.56006859,0.00013996,2]
[330360891,1719333031661,-530.0,0.00013996,2]
[330360892,1719333031685,-2400.0,0.00013996,2]
[330360893,1719333031700,-618.92831,0.00013996,2]
[330360894,1719333031711,-748.29935865,0.00013996,2]
[330360895,1719333031733,-3395.83904158,0.00013996,2]
[330360896,1719333031744,-9958.20726607,0.00013996,2]
[330360897,1719333031768,-772.1,0.00013996,2]
[330360899,1719333031787,-11526.53708621,0.00013996,2]
[330360900,1719333031798,-380.82981456,0.00013996,2]
[330360901,1719333031812,-2034.51281324,0.00013996,2]
[330360912,1719333031997,-10.68482942,0.00013996,2]
[330360913,1719333032008,-2703.71670388,0.00013996,2]
[330360923,1719333037472,-639.75,0.00013996,2]
[330360924,1719333037496,-10973.40531483,0.00013996,2]
[330360925,1719333037505,-250.0,0.00013997,2]
[330360926,1719333037515,-5246.96,0.00014076,2]
[330360927,1719333037525,-155.19359069,0.00014158,2]
[330360928,1719333037537,-487.87,0.00014244,2]
[330360929,1719333037548,-169.85,0.00014316,2]
[330360930,1719333037557,-215.4,0.00014324,2]
[330360931,1719333037569,-216.65,0.00014537,2]
[330360932,1719333037581,-3379.33891475,0.00014596,2]
[330360933,1719333037590,-2373.11184045,0.00014597,2]
[330360934,1719333037603,-4455.21626006,0.00014693,2]
[330360935,1719333037613,-1000.0,0.00014695,2]
[330360936,1719333037623,-250.49948681,0.00014849,2]
[330360937,1719333037635,-259.06347,0.0001485,2]
[330360938,1719333037644,-200.0,0.00014879,2]
[330360939,1719333037656,-1000.0,0.00014879,2]
[330360940,1719333037667,-500.0,0.00014879,2]
[330360941,1719333037676,-1000.0,0.0001488,2]
[330360942,1719333037686,-200.0,0.0001488,2]
[330360943,1719333037696,-1000.0,0.0001488,2]
[330360944,1719333037706,-1000.0,0.0001488,2]
[330360945,1719333037715,-1000.0,0.0001488,2]
[330360946,1719333037725,-500.0,0.0001488,2]
[330360947,1719333037735,-500.0,0.0001488,2]
[330360948,1719333037745,-200.0,0.0001488,2]
[330360949,1719333037755,-499.99,0.0001488,2]
[330360950,1719333037766,-271.85724688,0.00014897,2]
[330360951,1719333037775,-14041.54801771,0.000149,2]
[330360952,1719333037786,-1319.22371214,0.000149,2]
[330360953,1719333037795,-1340.45210192,0.00014919,2]
[330360954,1719333037805,-555.35,0.0001492,2]
[330360955,1719333037819,-226.87469361,0.00014986,2]
[330360956,1719333037828,-179.17,0.0001499,3]
[330360957,1719333037842,-2977.91977531,0.00014999,2]
[330360958,1719333037857,-158.92716166,0.00014999,2]
[330360960,1719333037867,-450.07456747,0.00014999,2]
[330360961,1719333037878,-150089.72276866,0.00015,2]